Workbook

Sheet 20.01
A2: МБОУ "СОШ №33" НМР РТ | D2: Отд./корп | E2: 2 неделя | H2: День | I2: 2025-01-20
A4: Раздел | B4: № рец. | C4: Блюдо | D4: Выход, г | E4: Цена | F4: Ккал | G4: Белки | H4: Жиры | I4: Угл-ды
A5: Завтрак
A6: хлеб | C6: Печенье | D6: 40 | F6: 124.28 | G6: 2.96 | H6: 3.76 | I6: 10.84
A7: 2 блюдо | B7: 173 | C7: Каша пшеничная молочная | D7: 200 | F7: 344.46 | G7: 14.06 | H7: 16.86 | I7: 35.49
A8: гор.напиток | B8: 376 | C8: Чай с сахаром, с яблоком | D8: 200 | F8: 36.68 | G8: 0.11 | H8: 0.06 | I8: 8.97
A9: хлеб | C9: Батон нарезной | D9: 60 | F9: 131.00 | G9: 3.75 | H9: 1.45 | I9: 25.70
D10: 500 | F10: =SUM(F6:F9) -> 636.42 | G10: =SUM(G6:G9) -> 20.88 | H10: 22.13 | I10: 81.00
A11: Обед
A12: 1 блюдо | B12: 82 | C12: Борщ из свежей капусты с картофелем со сметаной | D12: 200/5 | F12: 113.10 | G12: 1.57 | H12: 10.69 | I12: 8.93
A13: 2 блюдо | B13: 234 | C13: Биточки рыбные | D13: 90 | F13: 170.20 | G13: 10.68 | H13: 8.98 | I13: 16.21
A14: гарнир | B14: 203 | C14: Макароны отварные с маслом сливочным | D14: 150/3 | F14: 176.20 | G14: 5.68 | H14: 2.88 | I14: 31.96
A15: напиток | B15: 389 | C15: Напиток из плодов шиповника | D15: 200 | F15: 84.80 | G15: 1.00 | H15: 0.00 | I15: 20.20
A16: хлеб | C16: Хлеб пшеничный/ржаной | D16: 30/30 | F16: 129.90 | G16: 4.26 | H16: 0.60 | I16: 26.64
D17: 708 | F17: =SUM(F12:F16) -> 674.20 | G17: =SUM(G12:G16) -> 23.19 | H17: 23.15 | I17: 103.94
C18: бесп питание младшие + допол. питание | D18: =SUM(D10+D17) -> 1208 | E18: 126.99 | F18: =SUM(F10+F17) -> 1310.62 | G18: =SUM(G10+G17) -> 44.07 | H18: 45.28 | I18: 184.94
A20: Горячий завтрак (младшие)
A21: хлеб | C21: Бутерброд с маслом сливочным | D21: 40 | F21: 136.00 | G21: 2.36 | H21: 7.49 | I21: 14.83
A22: 2 блюдо | B22: 234 | C22: Биточки рыбные | D22: 90 | F22: 170.20 | G22: 10.68 | H22: 8.98 | I22: 16.21
A23: гарнир | B23: 203 | C23: Макароны отварные с маслом сливочным | D23: 150/3 | F23: 176.10 | G23: 5.68 | H23: 2.88 | I23: 31.96
A24: гор.напиток | B24: 376 | C24: Чай с сахаром, с яблоком | D24: 200 | F24: 36.68 | G24: 0.11 | H24: 0.06 | I24: 8.97
A25: хлеб | C25: Хлеб пшеничный | D25: 20 | F25: 39.60 | G25: 1.32 | H25: 0.24 | I25: 7.92
C27: бесплатное питание младшие | D27: 503 | E27: 83.89 | F27: =F21+F22+F23+F24+F25+F26 -> 558.58 | G27: =G21+G22+G23+G24+G25+G26 -> 20.15 | H27: =H21+H22+H23+H24+H25+H26 -> 19.65 | I27: =I21+I22+I23+I24+I25+I26 -> 79.89
A29: Раздел | B29: № рец. | C29: Блюдо | D29: Выход, г | E29: Цена | F29: Ккал | G29: Белки | H29: Жиры | I29: Угл-ды
A30: Старшие
A31: Фрукты | C31: Фрукты (яблоки) | D31: 100 | F31: 47.00 | G31: 0.40 | H31: 0.40 | I31: 9.80
A32: 2 блюдо | B32: 234 | C32: Биточки рыбные с молочном соусе | D32: 90/20 | F32: 290.20 | G32: 10.68 | H32: 13.98 | I32: 30.95
A33: гарнир | B33: 203 | C33: Макароны отварные с маслом сливочным | D33: 180/3 | F33: 241.94 | G33: 9.64 | H33: 7.60 | I33: 33.35
A34: гор.напиток | B34: 376 | C34: Чай с сахаром, с яблоком | D34: 200 | F34: 36.68 | G34: 0.11 | H34: 0.06 | I34: 8.97
A35: хлеб | C35: Хлеб ржаной | D35: 20 | F35: 39.60 | G35: 1.32 | H35: 0.24 | I35: 7.92
C37: питание старшие | D37: 613 | E37: 87.18 | F37: =SUM(F31:F36) -> 655.42 | G37: =SUM(G31:G36) -> 22.15 | H37: 22.28 | I37: 90.99

Sheet 21.01
A2: МБОУ "СОШ №33" НМР РТ | D2: Отд./корп | E2: 2 неделя | H2: День | I2: 2025-01-21
A4: Раздел | B4: № рец. | C4: Блюдо | D4: Выход, г | E4: Цена | F4: Ккал | G4: Белки | H4: Жиры | I4: Угл-ды
A5: Завтрак
A6: хлеб | B6: 209 | C6: Бутерброд с повидлом (30/20) | D6: 50 | F6: 209.00 | G6: 7.05 | H6: 2.30 | I6: 16.80
A7: 2 блюдо | B7: 173 | C7: Каша геркулесовая молочная | D7: 200 | F7: 241.26 | G7: 7.49 | H7: 15.15 | I7: 30.60
A8: гор.напиток | B8: 376 | C8: Чай с сахаром | D8: 200 | F8: 32.00 | G8: 0.07 | H8: 0.02 | I8: 8.00
A9: хлеб | C9: Батон нарезной | D9: 50 | F9: 132.00 | G9: 3.76 | H9: 1.74 | I9: 30.84
D10: =SUM(D6:D9) -> 500 | F10: =SUM(F6:F9) -> 614.26 | G10: =SUM(G6:G9) -> 18.37 | H10: 19.21 | I10: 86.24
A11: Обед
A13: 1 блюдо | B13: 96 | C13: Рассольник Ленинградский со сметаной | D13: 200/5 | F13: 93.90 | G13: 5.94 | H13: 6.82 | I13: 12.56
A14: 2 блюдо | B14: 235 | C14: Жаркое из птицы (куриных грудок) | D14: 200 | F14: 473.54 | G14: 17.01 | H14: 18.47 | I14: 52.76
A15: хол.закуска | B15: 335 | C15: Капуста квашеная (доп.гарнир) | D15: 35 | F15: 29.99 | G15: 0.59 | H15: 1.75 | I15: 2.94
A16: напиток | B16: 555 | C16: Напиток из изюма и яблок | D16: 200 | F16: 68.12 | G16: 0.20 | H16: 0.10 | I16: 19.82
A17: хлеб | C17: Хлеб пшеничный/ржаной | D17: 30/30 | F17: 129.90 | G17: 4.26 | H17: 0.60 | I17: 26.64
D18: 700 | F18: =SUM(F12:F17) -> 795.45 | G18: =SUM(G12:G17) -> 28.00 | H18: =SUM(H12:H17) -> 27.74 | I18: =SUM(I12:I17) -> 114.72
C19: бесп питание младшие + допол. питание | D19: =D10+D18 -> 1200 | E19: ='20.01'!E18 -> 126.99 | F19: =SUM(F10+F18) -> 1409.71 | G19: =SUM(G10+G18) -> 46.37 | H19: =SUM(H10+H18) -> 46.95 | I19: =SUM(I10+I18) -> 200.96
A21: Горячий завтрак (младшие)
A23: Фрукты | C23: Фрукты (яблоки) | D23: 100 | F23: 47.00 | G23: 0.40 | H23: 0.40 | I23: 9.80
A24: 2 блюдо | B24: 235 | C24: Жаркое из птицы (куриных грудок) | D24: 200 | F24: 473.54 | G24: 17.01 | H24: 18.47 | I24: 52.76
A25: гор.напиток | B25: 376 | C25: Чай с сахаром | D25: 200 | F25: 32.00 | G25: 0.07 | H25: 0.02 | I25: 8.00
A26: хлеб | C26: Хлеб ржаной | D26: 30 | F26: 59.40 | G26: 1.98 | H26: 0.36 | I26: 11.88
C28: бесплатное питание младшие | D28: 520 | E28: ='20.01'!E27 -> 83.89 | F28: =SUM(F22:F27) -> 611.94 | G28: =SUM(G22:G27) -> 19.46 | H28: 19.25 | I28: 82.44
A30: Раздел | B30: № рец. | C30: Блюдо | D30: Выход, г | E30: Цена | F30: Ккал | G30: Белки | H30: Жиры | I30: Угл-ды
A31: Старшие
A32: хол.закуска | B32: 47 | C32: Салат из квашеной капусты | D32: 100 | F32: 85.70 | G32: 1.70 | H32: 4.80 | I32: 8.46
A33: 2 блюдо | B33: 235 | C33: Жаркое из птицы (куриных грудок) | D33: 250 | F33: 541.92 | G33: 20.26 | H33: 19.08 | I33: 73.20
A34: гор.напиток | B34: 376 | C34: Чай с сахаром | D34: 200 | F34: 32.00 | G34: 0.07 | H34: 0.02 | I34: 8.00
A35: хлеб | C35: Хлеб пшеничный | D35: 20 | F35: 47.00 | G35: 1.52 | H35: 0.16 | I35: 9.84
C37: питание старшие | D37: 570 | E37: ='20.01'!E37 -> 87.18 | F37: =SUM(F32:F36) -> 706.62 | G37: =SUM(G32:G36) -> 23.55 | H37: 24.06 | I37: 99.50

Sheet 22.01
A2: МБОУ "СОШ №33" НМР РТ | D2: Отд./корп | E2: 2 неделя | H2: День | I2: 2025-01-22
A4: Раздел | B4: № рец. | C4: Блюдо | D4: Выход, г | E4: Цена | F4: Ккал | G4: Белки | H4: Жиры | I4: Угл-ды
A5: Завтрак
A6: Фрукты | C6: Фрукты (яблоки) | D6: 100 | F6: 47.00 | G6: 0.40 | H6: 0.40 | I6: 9.80
A7: 2 блюдо | B7: 173 | C7: Каша пшенная молочная с маслом сливочным | D7: 150/5 | F7: 247.80 | G7: 11.26 | H7: 14.01 | I7: 23.68
A8: гор.напиток | B8: 377 | C8: Чай с сахаром и лимоном | D8: 200 | F8: 34.02 | G8: 0.13 | H8: 0.02 | I8: 8.20
A9: хлеб | C9: Батон нарезной | D9: 50 | F9: 131.00 | G9: 3.75 | H9: 1.45 | I9: 25.70
D10: 500 | F10: =SUM(F6:F9) -> 459.82 | G10: =SUM(G6:G9) -> 15.54 | H10: =SUM(H6:H9) -> 15.88 | I10: =SUM(I6:I9) -> 67.38
A11: Обед
A12: 1 блюдо | B12: 119 | C12: Суп гороховой с гренками | D12: 200/5 | F12: 250.82 | G12: 7.24 | H12: 7.96 | I12: 30.41
A13: 2 блюдо | B13: 294 | C13: Котлеты Здоровье из куриных грудок | D13: 90 | F13: 229.63 | G13: 11.20 | H13: 10.96 | I13: 24.82
A14: гарнир | B14: 303 | C14: Каша гречневая вязкая с маслом сливочным | D14: 150/3 | F14: 165.30 | G14: 4.60 | H14: 7.19 | I14: 20.56
A15: напиток | B15: 349 | C15: Напиток из сухофруктов | D15: 200 | F15: 92.90 | G15: 0.70 | H15: 0.10 | I15: 22.03
A16: хлеб | C16: Хлеб пшеничный/ржаной | D16: 25/30 | F16: 118.15 | G16: 3.88 | H16: 0.56 | I16: 24.18
D17: 703 | F17: =SUM(F12:F16) -> 856.80 | G17: =SUM(G12:G16) -> 27.62 | H17: =SUM(H12:H16) -> 26.77 | I17: =SUM(I12:I16) -> 122.00
C18: бесп питание младшие + допол. питание | D18: =SUM(D10+D17) -> 1203 | E18: ='20.01'!E18 -> 126.99 | F18: 1316.62 | G18: 43.16 | H18: 42.65 | I18: 189.38
A20: Горячий завтрак (младшие)
A22: 2 блюдо | B22: 294 | C22: Котлеты Здоровье из куриных грудок | D22: 90 | F22: 229.63 | G22: 11.20 | H22: 10.96 | I22: 24.82
A23: гарнир | B23: 303 | C23: Каша гречневая вязкая с маслом сливочным | D23: 150/3 | F23: 165.30 | G23: 4.60 | H23: 7.19 | I23: 20.56
A24: гор.напиток | B24: 377 | C24: Чай с сахаром и лимоном | D24: 187/8/5 | F24: 34.02 | G24: 0.13 | H24: 0.02 | I24: 8.20
A25: хлеб | C25: Хлеб пшеничный/ржаной | D25: 30/30 | F25: 129.90 | G25: 4.26 | H25: 0.60 | I25: 26.64
C26: бесплатное питание младшие | D26: 503 | E26: ='20.01'!E27 -> 83.89 | F26: =SUM(F21:F25) -> 558.85 | G26: =SUM(G21:G25) -> 20.19 | H26: 18.77 | I26: 80.22
A28: Раздел | B28: № рец. | C28: Блюдо | D28: Выход, г | E28: Цена | F28: Ккал | G28: Белки | H28: Жиры | I28: Угл-ды
A29: Старшие
A30: 2 блюдо | B30: 294 | C30: Котлеты Здоровье из куриных грудок | D30: 100 | F30: 295.14 | G30: 12.44 | H30: 12.17 | I30: 27.57
A31: гарнир | B31: 303 | C31: Каша гречневая вязкая с маслом сливочным | D31: 180/3 | F31: 194.40 | G31: 5.52 | H31: 8.19 | I31: 24.67
A32: хол.закуски | C32: Горошек консервированный | D32: 15 | F32: 20.07 | G32: 0.40 | H32: 1.07 | I32: 2.18
A33: гор.напиток | B33: 377 | C33: Чай с сахаром и лимоном | D33: 187/8/5 | F33: 34.02 | G33: 0.13 | H33: 0.02 | I33: 8.20
A34: хлеб | C34: Хлеб пшеничный/ржаной | D34: 30/30 | F34: 129.90 | G34: 4.26 | H34: 0.60 | I34: 26.64
C36: питание старшие | D36: 558 | E36: ='20.01'!E37 -> 87.18 | F36: =SUM(F30:F34) -> 673.53 | G36: =SUM(G30:G34) -> 22.75 | H36: =SUM(H30:H34) -> 22.05 | I36: =SUM(I30:I34) -> 89.26

Sheet 23.01
A2: МБОУ "СОШ №33" НМР РТ | D2: Отд./корп | E2: 2 неделя | H2: День | I2: 2025-01-23
A4: Раздел | B4: № рец. | C4: Блюдо | D4: Выход, г | E4: Цена | F4: Ккал | G4: Белки | H4: Жиры | I4: Угл-ды
A5: Завтрак
A6: хлеб | B6: 1 | C6: Крекер | D6: 30 | F6: 135.00 | G6: 2.70 | H6: 5.40 | I6: 14.20
A7: 2 блюдо | B7: 174 | C7: Каша кукурузная молочная | D7: 200 | F7: 211.46 | G7: 10.95 | H7: 11.84 | I7: 22.01
A8: гор.напиток | B8: 376 | C8: Чай с сахаром | D8: 200 | F8: 32.00 | G8: 0.07 | H8: 0.02 | I8: 8.00
A9: хлеб | C9: Батон нарезной | D9: 65 | F9: 183.40 | G9: 5.24 | H9: 2.02 | I9: 35.98
D10: 500 | F10: =SUM(F6:F9) -> 561.86 | G10: =SUM(G6:G9) -> 18.96 | H10: =SUM(H6:H9) -> 19.28 | I10: =SUM(I6:I9) -> 80.19
A11: Обед
A12: 1 блюдо | C12: Щи из свежей капусты с картофелем | D12: 250 | F12: 211.90 | G12: 8.04 | H12: 8.00 | I12: 26.50
A13: 2 блюдо | B13: 758 | C13: Тефтели мясные с овощами | D13: 100 | F13: 179.59 | G13: 11.40 | H13: 9.91 | I13: 24.86
A14: гарнир | B14: 203 | C14: Макароны отварные с маслом сливочным | D14: 150/3 | F14: 176.10 | G14: 5.68 | H14: 2.88 | I14: 31.96
A15: гор.напиток | B15: 158 | C15: Напиток из плодов шиповника | D15: 200 | F15: 123.60 | G15: 0.60 | H15: 0.10 | I15: 20.20
A16: хлеб | C16: Хлеб пшеничный/ржаной | D16: 20/20 | F16: 86.60 | G16: 2.84 | H16: 0.40 | I16: 17.76
D18: 743 | F18: =SUM(F12:F17) -> 777.79 | G18: =SUM(G12:G17) -> 28.56 | H18: 21.29 | I18: 121.28
C19: бесп питание младшие + допол. питание | D19: =D10+D18 -> 1243 | E19: ='20.01'!E18 -> 126.99 | F19: =SUM(F10+F18) -> 1339.65 | G19: =SUM(G10+G18) -> 47.52 | H19: =SUM(H10+H18) -> 40.57 | I19: =SUM(I10+I18) -> 201.47
A21: Горячий завтрак (младшие)
A22: хлеб | B22: 1 | C22: Крекер | D22: 30 | F22: 135.00 | G22: 2.70 | H22: 5.40 | I22: 14.20
A23: 2 блюдо | B23: 758 | C23: Тефтели мясные с овощами | D23: 100 | F23: 183.50 | G23: 12.84 | H23: 12.23 | I23: 28.50
A24: гарнир | B24: 203 | C24: Макароны отварные с маслом сливочным | D24: 150/3 | F24: 176.10 | G24: 5.68 | H24: 2.88 | I24: 31.96
A25: гор.напиток | B25: 158 | C25: Напиток из плодов шиповника | D25: 200 | F25: 123.60 | G25: 0.60 | H25: 0.10 | I25: 20.20
A26: хлеб | C26: Хлеб пшеничный | D26: 30 | F26: 70.50 | G26: 2.28 | H26: 0.24 | I26: 14.76
C28: бесплатное питание младшие | D28: 513 | E28: ='20.01'!E27 -> 83.89 | F28: =SUM(F22:F26) -> 688.70 | G28: =SUM(G22:G26) -> 24.10 | H28: =SUM(H22:H26) -> 20.85 | I28: =SUM(I22:I26) -> 109.62
A30: Раздел | B30: № рец. | C30: Блюдо | D30: Выход, г | E30: Цена | F30: Ккал | G30: Белки | H30: Жиры | I30: Угл-ды
A31: Старшие
A32: хлеб | B32: 1 | C32: Печенье | D32: 20 | F32: 62.14 | G32: 1.48 | H32: 1.88 | I32: 5.42
A33: 2 блюдо | B33: 758 | C33: Тефтели мясные с овощами | D33: 100 | F33: 183.50 | G33: 12.84 | H33: 12.23 | I33: 28.50
A34: гарнир | B34: 312 | C34: Макароны отварные с маслом сливочным | D34: 180/3 | F34: 241.94 | G34: 9.64 | H34: 7.60 | I34: 33.35
A35: гор.напиток | B35: 158 | C35: Напиток из плодов шиповника | D35: 200 | F35: 123.60 | G35: 0.60 | H35: 0.10 | I35: 20.20
A36: хлеб | C36: Хлеб пшеничный/ржаной | D36: 20/30 | F36: 186.40 | G36: 3.50 | H36: 0.52 | I36: 21.72
C37: питание старшие | D37: 553 | E37: ='20.01'!E37 -> 87.18 | F37: =SUM(F32:F36) -> 797.58 | G37: =SUM(G32:G36) -> 28.06 | H37: 22.33 | I37: 109.19

Sheet 24.01
A2: МБОУ "СОШ №33" НМР РТ | D2: Отд./корп | E2: 2 неделя | H2: День | I2: 2025-01-24
A4: Раздел | B4: № рец. | C4: Блюдо | D4: Выход, г | E4: Цена | F4: Ккал | G4: Белки | H4: Жиры | I4: Угл-ды
A5: Завтрак
A6: Фрукты | C6: Фрукты (яблоки) | D6: 100 | F6: 47.00 | G6: 0.40 | H6: 0.40 | I6: 9.80
A7: гор.блюдо | B7: 174 | C7: Каша ячневая молочная с маслом сливочным | D7: 150/3 | F7: 211.89 | G7: 6.61 | H7: 9.83 | I7: 21.12
A8: гор.напиток | B8: 382 | C8: Какао с молоком | D8: 200 | F8: 58.60 | G8: 4.08 | H8: 3.54 | I8: 2.61
A9: хлеб | C9: Батон нарезной | D9: 50 | F9: 132.00 | G9: 3.76 | H9: 1.74 | I9: 30.84
D11: 503 | F11: =SUM(F6:F10) -> 449.49 | G11: =SUM(G6:G10) -> 14.85 | H11: =SUM(H6:H10) -> 15.51 | I11: =SUM(I6:I10) -> 64.37
A12: Обед
A13: закуски | C13: Свекла отварная дольками | D13: 60 | F13: 55.68 | G13: 0.84 | H13: 3.61 | I13: 4.96
A14: 1 блюдо | B14: 103 | C14: Суп картофельный с крупой перловой | D14: 200 | F14: 114.60 | G14: 7.15 | H14: 4.27 | I14: 18.06
A15: 2 блюдо | C15: Гуляш из куриной грудки | D15: 100 | F15: 209.39 | G15: 8.64 | H15: 9.83 | I15: 13.40
A16: гор.блюдо | C16: Пюре картофельное | D16: 150 | F16: 177.55 | G16: 3.09 | H16: 4.98 | I16: 39.48
A17: напиток | B17: 342 | C17: Компот из свежих яблок | D17: 200 | F17: 46.60 | G17: 0.16 | H17: 0.16 | I17: 10.91
A18: хлеб | C18: Хлеб пшеничный/ржаной | D18: 20/20 | F18: 86.60 | G18: 2.84 | H18: 0.40 | I18: 17.76
D19: 750 | F19: =SUM(F13:F18) -> 690.42 | G19: =SUM(G13:G18) -> 22.72 | H19: 23.25 | I19: 104.57
C20: бесп питание младшие + допол. питание | D20: =D11+D19 -> 1253 | E20: ='20.01'!E18 -> 126.99 | F20: =SUM(F11+F19) -> 1139.91 | G20: =SUM(G11+G19) -> 37.57 | H20: =SUM(H11+H19) -> 38.76 | I20: =SUM(I11+I19) -> 168.94
A22: Горячий завтрак (младшие)
A23: Фрукты | C23: Фрукты (яблоки) | D23: 100 | F23: 47.00 | G23: 0.40 | H23: 0.40 | I23: 9.80
A24: 2 блюдо | C24: Гуляш из куриной грудки | D24: 100 | F24: 209.39 | G24: 8.64 | H24: 9.83 | I24: 13.40
A25: гор.блюдо | C25: Пюре картофельное | D25: 150 | F25: 177.55 | G25: 3.09 | H25: 4.98 | I25: 39.48
A26: гор.напиток | B26: 382 | C26: Какао с молоком | D26: 200 | F26: 58.60 | G26: 4.08 | H26: 3.54 | I26: 2.61
A27: хлеб | C27: Хлеб пшеничный | D27: 30 | F27: 70.50 | G27: 2.28 | H27: 0.24 | I27: 14.76
C29: бесплатное питание младшие | D29: 580 | E29: ='20.01'!E27 -> 83.89 | F29: =SUM(F23:F27) -> 563.04 | G29: =SUM(G23:G27) -> 18.49 | H29: =SUM(H23:H27) -> 18.99 | I29: =SUM(I23:I27) -> 80.05
A31: Раздел | B31: № рец. | C31: Блюдо | D31: Выход, г | E31: Цена | F31: Ккал | G31: Белки | H31: Жиры | I31: Угл-ды
A32: Старшие
A33: 2 блюдо | C33: Гуляш из куриной грудки | D33: 100 | F33: 209.39 | G33: 8.64 | H33: 12.83 | I33: 13.40
A34: гор.блюдо | C34: Пюре картофельное | D34: 180/3 | F34: 164.70 | G34: 3.68 | H34: 5.76 | I34: 44.53
A35: закуски | C35: Свекла отварная дольками | D35: 30 | F35: 27.84 | G35: 0.42 | H35: 1.80 | I35: 2.48
A36: гор.напиток | B36: 382 | C36: Какао с молоком | D36: 200 | F36: 58.60 | G36: 4.08 | H36: 3.54 | I36: 2.61
A37: хлеб | C37: Хлеб пшеничный/ржаной | D37: 20/20 | F37: 86.60 | G37: 2.84 | H37: 0.40 | I37: 17.76
C38: питание старшие | D38: 550 | E38: ='20.01'!E37 -> 87.18 | F38: =SUM(F33:F37) -> 547.13 | G38: =SUM(G33:G37) -> 19.66 | H38: =SUM(H33:H37) -> 24.33 | I38: =SUM(I33:I37) -> 80.78

Sheet 25.01
A2: МБОУ "СОШ №33" НМР РТ | D2: Отд./корп | E2: 2 неделя | H2: День | I2: 2025-01-25
A4: Раздел | B4: № рец. | C4: Блюдо | D4: Выход, г | E4: Цена | F4: Ккал | G4: Белки | H4: Жиры | I4: Угл-ды
A5: Старшие
A6: 2 блюдо | B6: 757 | C6: Котлета рубленая из куриной грудки | D6: 100 | F6: 233.10 | G6: 10.77 | H6: 12.92 | I6: 16.65
A7: гарнир | B7: 203 | C7: Пюре гороховое с маслом сливочным | D7: 180/3 | F7: 266.40 | G7: 7.81 | H7: 9.26 | I7: 41.95
A8: гор.напиток | B8: 376 | C8: Чай с сахаром | D8: 200 | F8: 32.00 | G8: 0.07 | H8: 0.02 | I8: 8.00
A9: хлеб | C9: Хлеб ржаной/пшеничный | D9: 40/30 | F9: 149.70 | G9: 4.92 | H9: 0.72 | I9: 30.60
C11: питание старшие | D11: 553 | E11: ='20.01'!E37 -> 87.18 | F11: =SUM(F6:F9) -> 681.20 | G11: =SUM(G6:G9) -> 23.57 | H11: 22.92 | I11: 97.20
